bitfinex-derivatives/quotes_BTCF0:USTF0_20250919
["timestamp","ask_amount","ask_price","bid_price","bid_amount"]
[1758294240460,0.43777282,115800.0,115790.0,0.7870582]
[1758294240648,0.77583164,115800.0,115790.0,0.11267788]
[1758294240852,1.63167164,115800.0,115790.0,0.11267788]
[1758294241052,1.88167164,115800.0,115790.0,0.11267788]
[1758294242255,1.88167164,115800.0,115790.0,0.09143788]
[1758294242762,1.54361282,115800.0,115790.0,0.09143788]
[1758294242965,1.88167164,115800.0,115790.0,0.09143788]
[1758294243155,1.88167164,115800.0,115790.0,0.08006815]
[1758294243859,0.0863214,115790.0,115780.0,0.05579906]
[1758294244064,0.51677071,115790.0,115780.0,0.06743493]
[1758294244262,0.76677071,115790.0,115780.0,0.02033906]
[1758294244462,0.0937289,115780.0,115770.0,0.0355]
[1758294244662,1.37225821,115780.0,115770.0,0.0355]
[1758294244964,0.51677821,115780.0,115770.0,0.10375987]
[1758294245259,1.37217821,115780.0,115770.0,0.0355]
[1758294245463,0.9491289,115780.0,115770.0,0.0355]
[1758294245861,0.0937289,115780.0,115770.0,0.0355]
[1758294246066,0.9550489,115780.0,115770.0,0.0355]
[1758294246267,0.9550889,115780.0,115770.0,0.0355]
[1758294246467,0.0997289,115780.0,115770.0,0.0355]
[1758294246658,0.9550089,115780.0,115770.0,0.0355]
[1758294246859,0.9560089,115780.0,115770.0,0.0355]
[1758294247059,0.52377821,115780.0,115770.0,0.0355]
[1758294247255,0.9559689,115780.0,115770.0,0.13346501]
[1758294247471,0.1007289,115780.0,115770.0,0.04712891]
[1758294247870,0.1007289,115780.0,115770.0,0.13346501]
[1758294248273,0.9558889,115780.0,115770.0,0.04712891]
[1758294249171,1.37893821,115780.0,115770.0,0.10346298]
[1758294249371,1.37893821,115780.0,115770.0,0.0355]
[1758294249575,1.37893821,115780.0,115770.0,0.01273]
[1758294249877,1.37625577,115780.0,115770.0,0.01273]
[1758294250077,0.9558889,115780.0,115770.0,0.01273]
[1758294250278,1.37625577,115780.0,115770.0,0.01273]
[1758294250482,1.37625577,115780.0,115770.0,0.0355]
[1758294250674,0.9558889,115780.0,115770.0,0.0355]
[1758294251074,0.9548889,115780.0,115770.0,0.0355]
[1758294251277,0.9548089,115780.0,115770.0,0.0355]
[1758294251571,1.37517577,115780.0,115770.0,4e-05]
[1758294251975,1.37417577,115780.0,115770.0,0.01325]
[1758294252178,1.37517577,115780.0,115770.0,0.03602]
[1758294252478,1.37497577,115780.0,115770.0,0.03602]
[1758294252678,0.9546089,115780.0,115770.0,0.03602]
[1758294253679,1.37497577,115780.0,115770.0,0.03602]
[1758294253877,0.9546089,115780.0,115770.0,0.03602]
[1758294255076,1.37473577,115780.0,115770.0,0.03602]
[1758294255477,1.37469577,115780.0,115770.0,0.03602]
[1758294256376,0.9543289,115780.0,115770.0,0.03602]
[1758294256683,1.37469577,115780.0,115770.0,0.01325]
[1758294256875,1.37469577,115780.0,115770.0,4e-05]
[1758294258575,1.37369577,115780.0,115770.0,4e-05]
[1758294258890,1.37269577,115780.0,115770.0,4e-05]
[1758294259184,1.37569577,115780.0,115770.0,0.03602]
[1758294259383,0.1007289,115780.0,115770.0,0.03602]
[1758294259685,0.9550489,115780.0,115770.0,0.03602]
[1758294259884,0.9520489,115780.0,115770.0,0.03602]
[1758294260194,0.9530089,115780.0,115770.0,0.03602]
[1758294260375,0.0987289,115780.0,115770.0,0.03602]
[1758294260580,0.51909577,115780.0,115770.0,0.01325]
[1758294260885,1.37333577,115780.0,115770.0,0.03602]
[1758294261474,1.37333577,115780.0,115770.0,0.01325]
[1758294261985,1.37333577,115780.0,115770.0,4e-05]
[1758294265187,0.9529689,115780.0,115770.0,4e-05]
[1758294265384,1.37333577,115780.0,115770.0,4e-05]
[1758294265587,1.62333577,115780.0,115770.0,4e-05]
[1758294266886,1.62233577,115780.0,115770.0,4e-05]
[1758294267092,1.62833577,115780.0,115770.0,4e-05]
[1758294267281,0.107419,115730.0,115720.0,0.1075236]
[1758294267482,0.961139,115730.0,115720.0,0.1206636]
[1758294267683,0.94709799,115730.0,115720.0,0.1206636]
[1758294267883,0.92604799,115730.0,115720.0,0.1206636]
[1758294268389,0.94709799,115730.0,115720.0,0.10435508]
[1758294269092,0.94709799,115730.0,115720.0,0.19072878]
[1758294269291,0.95209799,115730.0,115720.0,0.10435508]
[1758294269983,0.95309799,115730.0,115720.0,0.35435508]
[1758294270691,0.95309799,115730.0,115720.0,0.10435508]
[1758294271086,0.96630799,115730.0,115720.0,0.10435508]
[1758294271287,0.0863737,115720.0,115710.0,0.03074428]
[1758294271486,0.1074237,115720.0,115710.0,0.05189428]
[1758294271990,0.1074237,115720.0,115710.0,0.12187568]
[1758294272187,0.1144637,115720.0,115710.0,0.02115]
[1758294272390,0.1194637,115720.0,115710.0,0.02115]
[1758294272592,0.54083057,115720.0,115710.0,0.02115]
[1758294273190,0.1204637,115720.0,115710.0,0.02115]
[1758294273389,0.54083057,115720.0,115710.0,0.03429]
[1758294273591,1.38623057,115720.0,115710.0,0.03429]
[1758294273792,0.53379057,115720.0,115710.0,0.03429]
[1758294273992,0.1134237,115720.0,115710.0,0.03409]
[1758294274595,0.1124237,115720.0,115710.0,0.1204712]
[1758294275194,0.9657037,115720.0,115710.0,0.18893238]
[1758294275395,0.02605,115720.0,115710.0,0.18893238]
[1758294275697,0.005,115720.0,115710.0,0.18893238]
[1758294276000,0.9446537,115720.0,115710.0,0.43893238]
[1758294276299,0.9657037,115720.0,115710.0,0.43893238]
[1758294278398,0.85828,115720.0,115710.0,0.43893238]
[1758294278700,1.38607057,115720.0,115710.0,0.10255118]
[1758294278898,0.9657037,115720.0,115710.0,0.10255118]
[1758294279214,0.9657037,115720.0,115710.0,0.18893238]
[1758294279394,0.1124237,115720.0,115710.0,0.10255118]
[1758294279598,0.9655437,115720.0,115710.0,0.10255118]
[1758294281708,0.9655437,115720.0,115710.0,0.18893238]
[1758294282398,0.9655437,115720.0,115710.0,0.10255118]
[1758294283409,0.9655437,115720.0,115700.0,0.02115]
[1758294283410,0.1205712,115710.0,115700.0,0.02115]
[1758294283614,0.1205712,115710.0,115700.0,0.03429]
[1758294283615,0.54093807,115710.0,115700.0,0.03429]
[1758294283908,0.1074312,115710.0,115700.0,0.1206787]
[1758294284112,0.0863812,115710.0,115700.0,0.1206787]
[1758294284608,0.964546,115720.0,115710.0,0.1206711]
[1758294285310,0.964306,115720.0,115710.0,0.1206711]
[1758294285802,1.30314095,115720.0,115710.0,0.1206711]
[1758294286003,0.87803,115720.0,115710.0,0.45950605]
[1758294286206,0.85698,115720.0,115710.0,0.45950605]
[1758294286411,0.0041,115720.0,115710.0,0.1206711]
[1758294286705,0.0001,115720.0,115710.0,0.1206711]
[1758294286899,0.0011,115720.0,115710.0,0.70950605]
[1758294287608,0.0051,115720.0,115710.0,0.77786359]
[1758294288708,0.46449855,115720.0,115710.0,0.10264754]
[1758294288905,0.46449855,115720.0,115710.0,0.08950754]
[1758294289306,0.46449855,115720.0,115710.0,0.18902874]
[1758294289508,0.1125236,115720.0,115710.0,0.18902874]
[1758294289709,0.45135855,115720.0,115710.0,0.18902874]
[1758294289901,0.45135855,115720.0,115710.0,0.10264754]
[1758294290106,0.45135855,115720.0,115710.0,0.18902874]
[1758294290306,0.45135855,115720.0,115710.0,0.10264754]
[1758294291411,0.46449855,115720.0,115710.0,0.08950754]
[1758294291707,0.46449855,115720.0,115710.0,0.06835754]
[1758294291914,0.0863812,115710.0,115700.0,0.0658496]
[1758294292115,1.29880615,115710.0,115700.0,0.0658496]
[1758294292313,1.29880615,115710.0,115700.0,0.05478537]
[1758294292500,1.31221615,115710.0,115700.0,0.02115]
[1758294292918,0.9733812,115710.0,115700.0,0.02115]
[1758294293107,1.31221615,115710.0,115700.0,0.02115]
[1758294293411,0.9733812,115710.0,115700.0,0.03463]
[1758294293610,1.31321615,115710.0,115700.0,0.03463]
[1758294293813,1.31821615,115710.0,115700.0,0.03463]
[1758294294012,1.6570511,115710.0,115700.0,0.03463]
[1758294294309,1.9070511,115710.0,115690.0,0.07555889]
[1758294294517,0.44819345,115700.0,115690.0,0.09712889]
[1758294294710,0.44829345,115700.0,115690.0,0.09712889]
[1758294294915,0.44829345,115700.0,115690.0,0.18352489]
[1758294295417,0.9616985,115700.0,115690.0,0.16614095]
[1758294296014,1.30053345,115700.0,115690.0,0.25253695]
[1758294296318,1.30053345,115700.0,115690.0,0.16614095]
[1758294296709,0.45329345,115700.0,115690.0,0.25253675]
[1758294297110,0.9665785,115700.0,115690.0,0.25253675]
[1758294297607,0.9675785,115700.0,115690.0,0.25253675]
[1758294297807,1.30641345,115700.0,115690.0,0.25253675]
[1758294298209,0.9675385,115700.0,115690.0,0.25253675]
[1758294298712,0.9674985,115700.0,115690.0,0.25253675]
[1758294299518,0.1154585,115700.0,115690.0,0.25253675]
[1758294299716,0.0924885,115700.0,115690.0,0.5913717]
[1758294300314,0.0061,115700.0,115690.0,0.8413717]
[1758294301113,0.45371335,115700.0,115690.0,0.25253675]
[1758294301413,0.45371335,115700.0,115690.0,0.16614095]
[1758294301620,0.46075335,115700.0,115690.0,0.16614095]
[1758294301923,0.46075335,115700.0,115690.0,0.15540189]
[1758294302408,0.46075335,115700.0,115690.0,0.14226189]
[1758294303318,0.1219184,115700.0,115690.0,0.14226189]
[1758294303519,0.46075335,115700.0,115690.0,0.14226189]
[1758294303712,0.46075335,115700.0,115690.0,0.15342441]
[1758294304309,1.31247335,115700.0,115690.0,0.23982021]
[1758294304515,1.31247335,115700.0,115690.0,0.16687441]
[1758294305114,0.45371335,115700.0,115690.0,0.25327021]
[1758294305309,1.30539335,115700.0,115690.0,0.16687441]
[1758294305510,1.31243335,115700.0,115690.0,0.15342441]
[1758294306316,0.9665584,115700.0,115690.0,0.16687441]
[1758294306516,1.30539335,115700.0,115690.0,0.25327021]
[1758294307124,0.9665584,115700.0,115690.0,0.25327021]
[1758294307325,1.30539335,115700.0,115690.0,0.25327021]
[1758294307827,1.30539335,115700.0,115690.0,0.16687441]
[1758294308814,1.30539335,115700.0,115690.0,0.25327011]
[1758294309013,1.30539335,115700.0,115690.0,0.16687441]
[1758294309213,1.30539335,115700.0,115690.0,0.25327011]
[1758294309427,1.30539335,115700.0,115690.0,0.14226189]
[1758294309428,1.56243335,115700.0,115690.0,0.14226189]
[1758294309625,1.56243335,115700.0,115690.0,0.12069189]
[1758294309828,1.90171538,115700.0,115690.0,0.12069189]
[1758294310413,1.90171538,115700.0,115690.0,0.14324189]
[1758294311025,1.2235984,115700.0,115690.0,0.14324189]
[1758294311230,1.90171538,115700.0,115690.0,0.14324189]
[1758294311729,1.90171538,115700.0,115690.0,0.12069189]
[1758294312928,1.90171538,115700.0,115690.0,0.14324189]
[1758294313124,2.24077387,115700.0,115690.0,0.05167983]
[1758294313918,1.90171538,115700.0,115690.0,0.05167983]
[1758294315426,0.80003538,115700.0,115690.0,0.07422983]
[1758294315624,1.65095538,115700.0,115690.0,0.07422983]
[1758294315831,0.9728384,115700.0,115690.0,0.07422983]
[1758294316033,1.65095538,115700.0,115690.0,0.07422983]
[1758294316234,0.1148784,115700.0,115690.0,0.51313432]
[1758294316526,0.92929689,115700.0,115690.0,0.51313432]
[1758294316934,0.92929689,115700.0,115690.0,0.17407583]
[1758294317134,0.92929689,115700.0,115690.0,0.51313432]
[1758294317431,1.30465689,115700.0,115690.0,0.51313432]
[1758294317632,0.1148784,115700.0,115690.0,0.51313432]
[1758294317830,0.02849,115700.0,115690.0,0.76313432]
[1758294318033,1.13541699,115700.0,115690.0,0.76313432]
[1758294318232,0.7963585,115700.0,115690.0,0.76313432]
[1758294318529,1.47447548,115700.0,115690.0,0.42407583]
[1758294318737,0.7963585,115700.0,115690.0,0.42407593]
[1758294318927,1.47447548,115700.0,115690.0,0.42407593]
[1758294319125,0.7963585,115700.0,115690.0,0.42407593]
[1758294319526,1.47447548,115700.0,115690.0,0.42407593]
[1758294320437,0.7963585,115700.0,115690.0,0.42407593]
[1758294320633,1.47447548,115700.0,115690.0,0.42407593]
[1758294320834,1.48788548,115700.0,115690.0,0.08767983]
[1758294321028,1.48788548,115700.0,115690.0,0.05167983]
[1758294321538,1.48788548,115700.0,115690.0,0.07422983]
[1758294322936,0.8097685,115700.0,115690.0,0.07422983]
[1758294323139,1.48788548,115700.0,115690.0,0.07422983]
[1758294323435,1.48788548,115700.0,115690.0,0.05167983]
[1758294323625,1.82694397,115700.0,115690.0,0.05167983]
[1758294323938,1.48788548,115700.0,115690.0,0.05167983]
[1758294324431,1.82694397,115700.0,115690.0,0.05167983]
[1758294324637,2.07694397,115700.0,115690.0,0.05167983]
[1758294325534,1.73788548,115700.0,115690.0,0.05167983]
[1758294326237,1.2283285,115700.0,115690.0,0.04915983]
[1758294326436,1.2283285,115700.0,115690.0,0.06057983]
[1758294326640,1.90644548,115700.0,115690.0,0.06057983]
[1758294326940,1.2283285,115700.0,115690.0,0.06057983]
[1758294327138,1.2283285,115700.0,115690.0,0.03863983]
[1758294327139,1.90644548,115700.0,115690.0,0.03863983]
[1758294327540,1.2283285,115700.0,115690.0,0.03863983]
[1758294327735,1.99550397,115700.0,115690.0,0.00294643]
[1758294328036,2.24550397,115700.0,115690.0,0.00294643]
[1758294329134,2.24450397,115700.0,115690.0,3e-08]
[1758294329333,0.1220458,115690.0,115680.0,0.001]
[1758294329537,0.80026278,115690.0,115680.0,0.001]
[1758294330041,0.1221458,115690.0,115680.0,0.001]
[1758294330244,0.02276,115670.0,115660.0,0.02194]
[1758294330438,1.31135919,115670.0,115660.0,0.02194]
[1758294330642,1.31135919,115670.0,115660.0,0.08941445]
[1758294330937,0.46111919,115670.0,115660.0,0.3722482]
[1758294331136,1.30034919,115670.0,115660.0,0.28583]
[1758294331329,1.65229768,115670.0,115660.0,0.02194]
[1758294331639,1.65229768,115670.0,115650.0,0.05272369]
[1758294331640,0.1220683,115660.0,115650.0,0.05272369]
[1758294331837,0.80018528,115660.0,115650.0,0.05272369]
[1758294332031,0.37470849,115660.0,115650.0,0.40303949]
[1758294332233,0.1091783,115660.0,115650.0,0.40303949]
[1758294332441,0.44823679,115660.0,115650.0,0.74209798]
[1758294332743,0.80018528,115660.0,115650.0,0.40303949]
[1758294332939,0.46112679,115660.0,115650.0,0.40303949]
[1758294333344,0.46712679,115660.0,115650.0,0.65567218]
[1758294333545,0.46712679,115660.0,115650.0,0.30272369]
[1758294333733,0.80618528,115660.0,115650.0,0.04197519]
[1758294334245,0.80618528,115660.0,115650.0,0.11096272]
[1758294334433,0.80718528,115660.0,115650.0,0.04197519]
[1758294334843,0.1290683,115660.0,115650.0,0.04197519]
[1758294335050,0.80718528,115660.0,115650.0,0.04197519]
[1758294335234,0.80718528,115660.0,115650.0,0.02003519]
[1758294335744,0.80718528,115660.0,115650.0,0.04197519]
[1758294336144,0.80718528,115660.0,115640.0,0.02198]
[1758294336145,0.0864257,115650.0,115640.0,0.02198]
[1758294336438,1.65595268,115650.0,115640.0,4e-05]
[1758294336744,0.10802283,115650.0,115640.0,0.02198]
[1758294336941,0.44708132,115650.0,115640.0,0.1223032]
[1758294337137,0.96326283,115650.0,115640.0,0.46136169]
[1758294337344,1.30236132,115650.0,115640.0,0.46136169]
[1758294337536,0.95629283,115650.0,115640.0,1.05042018]
[1758294337738,0.93453283,115650.0,115640.0,1.05042018]
[1758294338135,0.95729283,115650.0,115640.0,0.3723032]
[1758294338442,0.44119132,115650.0,115640.0,0.35489115]
[1758294338638,0.10213283,115650.0,115640.0,0.44394964]
[1758294338832,0.45408132,115650.0,115640.0,0.10489115]
[1758294339037,0.11502283,115650.0,115640.0,0.44394964]
[1758294339235,0.44119132,115650.0,115640.0,0.53038284]
[1758294339441,0.36881849,115650.0,115640.0,0.86944133]
[1758294339740,0.38170849,115650.0,115640.0,0.19132435]
[1758294339939,0.38170849,115650.0,115640.0,0.53038284]
[1758294340140,0.46813419,115650.0,115640.0,0.53038284]
[1758294340334,0.36881849,115650.0,115640.0,0.53038284]
[1758294340546,0.36881849,115650.0,115640.0,0.89118284]
[1758294340750,0.36881849,115650.0,115640.0,1.23024133]
[1758294340939,0.007,115650.0,115640.0,1.48024133]
[1758294341645,0.46813419,115650.0,115640.0,0.19132435]
[1758294342143,0.46813419,115650.0,115640.0,0.53038284]
[1758294342343,0.1290757,115650.0,115640.0,0.19132435]
[1758294342538,0.46813419,115650.0,115640.0,0.19132425]
[1758294342738,0.46813419,115650.0,115640.0,0.17743425]
[1758294343047,0.46813419,115650.0,115640.0,0.09100115]
[1758294344241,0.46813419,115650.0,115640.0,0.17743425]
[1758294344442,0.46813419,115650.0,115640.0,0.09100115]
[1758294344643,0.4898757,115650.0,115640.0,0.43005964]
[1758294344943,0.1290757,115650.0,115640.0,0.43005964]
[1758294345143,0.1290757,115650.0,115640.0,0.09100115]
[1758294345344,0.82893419,115650.0,115640.0,0.09100115]
[1758294345750,0.4898757,115650.0,115640.0,0.09100115]
[1758294346051,1.68341419,115650.0,115640.0,0.53038274]
[1758294346343,1.68341419,115650.0,115640.0,0.19132425]
[1758294346545,0.4769857,115650.0,115640.0,0.53038274]
[1758294346751,0.1161856,115650.0,115640.0,1.23024123]
[1758294346941,0.36881849,115650.0,115640.0,0.55212425]
[1758294347142,0.36881849,115650.0,115640.0,1.2505972]
[1758294347345,0.007,115650.0,115640.0,1.2505972]
[1758294347542,0.43248409,115650.0,115640.0,0.91153871]
[1758294347742,0.1161856,115650.0,115640.0,0.91153871]
[1758294347939,0.45524409,115650.0,115640.0,0.57248022]
[1758294348251,0.1161856,115650.0,115640.0,0.57248022]
[1758294348551,0.45524409,115650.0,115640.0,0.57248022]
[1758294348951,0.45524409,115650.0,115640.0,0.91153871]
[1758294349246,0.45534409,115650.0,115640.0,0.91153871]
[1758294349446,0.1291756,115650.0,115640.0,0.47215712]
[1758294349650,0.4899756,115650.0,115640.0,0.11135712]
[1758294349852,0.82903409,115650.0,115640.0,0.11135712]
[1758294350451,0.4899756,115650.0,115640.0,0.11135712]
[1758294350749,0.82903409,115650.0,115640.0,0.11135712]
[1758294350950,0.1291756,115650.0,115640.0,0.11135712]
[1758294351254,1.68411409,115650.0,115640.0,0.11135712]
[1758294351439,1.68411409,115650.0,115640.0,0.09100115]
[1758294351847,1.3450556,115650.0,115640.0,0.09100115]
[1758294352046,1.68411409,115650.0,115640.0,0.09100115]
[1758294352246,1.3450556,115650.0,115640.0,0.09100115]
[1758294352645,1.68411409,115650.0,115640.0,0.09100115]
[1758294352842,1.3450556,115650.0,115640.0,0.09100115]
[1758294353046,1.68367409,115650.0,115640.0,0.09100115]
[1758294353248,1.68367409,115650.0,115640.0,0.52932274]
[1758294353445,2.02273258,115650.0,115640.0,0.06906115]
[1758294353656,1.68367409,115650.0,115640.0,0.09101115]
[1758294354352,1.3446156,115650.0,115640.0,0.09101115]
[1758294354950,1.68367409,115650.0,115640.0,0.09101115]
[1758294355347,1.68367409,115650.0,115640.0,0.43006964]
[1758294355546,1.3446156,115650.0,115640.0,0.09101115]
[1758294355746,1.3446156,115650.0,115640.0,0.43006964]
[1758294355952,0.82903409,115650.0,115640.0,0.43006964]
[1758294356253,0.46823409,115650.0,115640.0,0.09101115]
[1758294356554,0.88678,115650.0,115640.0,0.89013274]
[1758294356754,1.31226409,115650.0,115640.0,0.52933274]
[1758294356954,0.02986,115650.0,115640.0,1.22919123]
[1758294357252,0.46810409,115650.0,115640.0,0.09101115]
[1758294357453,1.32478409,115650.0,115640.0,0.09101115]
[1758294357759,1.68558409,115650.0,115640.0,0.06906115]
[1758294358258,1.68558409,115650.0,115640.0,0.42927964]
[1758294358561,1.68558409,115650.0,115640.0,0.44197964]
[1758294358749,1.3337656,115650.0,115640.0,0.52841274]
[1758294358950,1.67282409,115650.0,115640.0,0.52841274]
[1758294359458,0.88542,115650.0,115640.0,1.22827123]
[1758294359858,0.9718456,115650.0,115640.0,1.22827123]
[1758294360152,0.88526,115650.0,115640.0,1.47827123]
[1758294360354,0.0071,115650.0,115640.0,1.47827123]
[1758294360563,0.0071,115650.0,115640.0,1.81732972]
[1758294360861,0.9642612,115670.0,115660.0,0.1202782]
[1758294361156,0.85564,115670.0,115660.0,0.81843784]
[1758294361357,1.67688459,115680.0,115670.0,0.1202706]
[1758294361557,1.3378261,115680.0,115670.0,0.45932909]
[1758294361858,1.67688459,115680.0,115670.0,0.03386]
[1758294362063,2.01594308,115680.0,115670.0,0.02116]
[1758294362260,2.01594308,115680.0,115670.0,0.33905849]
[1758294362447,0.1215805,115670.0,115660.0,0.02004266]
[1758294362753,0.82143899,115670.0,115660.0,0.02004266]
[1758294362949,0.4823805,115670.0,115660.0,0.04120266]
[1758294363156,0.82243899,115670.0,115660.0,0.04220266]
[1758294363454,0.82243899,115670.0,115660.0,0.46767915]
[1758294363761,0.4833805,115670.0,115660.0,0.04220266]
[1758294364359,0.90731151,115670.0,115660.0,0.02104266]
[1758294364564,0.4833805,115670.0,115660.0,0.02104266]
[1758294364748,0.90731151,115670.0,115660.0,0.02104266]
[1758294365152,0.4833805,115670.0,115660.0,0.02104266]
[1758294365354,0.90731151,115670.0,115660.0,0.02104266]
[1758294365554,0.91231151,115670.0,115660.0,0.03104266]
[1758294365949,1.16231151,115670.0,115660.0,0.03104266]
[1758294366355,0.7383805,115670.0,115660.0,0.03104266]
[1758294366558,1.16231151,115670.0,115660.0,0.03104266]
[1758294366953,0.4883805,115670.0,115660.0,0.05220266]
[1758294367462,0.91231151,115670.0,115660.0,0.03104266]
[1758294368457,0.91231151,115670.0,115660.0,0.05220266]
[1758294369158,1.3419805,115670.0,115660.0,0.05220266]
[1758294369555,1.76591151,115670.0,115660.0,0.011]
[1758294370055,1.3419805,115670.0,115660.0,0.011]
[1758294370261,1.76591151,115670.0,115660.0,0.011]
[1758294370459,1.3419805,115670.0,115660.0,0.03216]
[1758294370762,1.76591151,115670.0,115660.0,0.03216]
[1758294371169,1.3419805,115670.0,115660.0,0.03216]
[1758294371364,1.76591151,115670.0,115660.0,0.03216]
[1758294371662,1.3404205,115670.0,115660.0,0.118578]
[1758294371864,0.9791805,115670.0,115660.0,0.131278]
[1758294372163,1.3399805,115670.0,115660.0,0.011]
[1758294372471,1.3399805,115670.0,115660.0,0.03216]
[1758294373149,1.3399805,115670.0,115660.0,0.011]
[1758294373350,1.76103321,115670.0,115660.0,0.011]
[1758294373564,1.3399805,115670.0,115660.0,0.011]
[1758294373859,1.3399405,115670.0,115660.0,0.03216]
[1758294374462,0.1146205,115670.0,115660.0,0.15100667]
[1758294374664,0.02821,115670.0,115660.0,0.57205938]
[1758294374966,0.9660606,115670.0,115660.0,0.40100667]
[1758294375262,0.006,115670.0,115660.0,0.40100667]
[1758294375561,0.0924106,115670.0,115660.0,0.40100667]
[1758294375762,0.1146206,115670.0,115660.0,0.40100667]
[1758294378166,0.1275806,115670.0,115660.0,0.31458857]
[1758294378764,0.1146206,115670.0,115660.0,0.40100667]
[1758294380158,0.1275806,115670.0,115660.0,0.31458857]
[1758294380360,0.1276806,115670.0,115660.0,0.40100657]
[1758294380862,0.1147206,115670.0,115660.0,0.40100657]
[1758294381861,0.0925106,115670.0,115660.0,0.40100657]
[1758294382062,0.0925106,115670.0,115660.0,0.82205928]
[1758294382565,0.1147206,115670.0,115660.0,0.40100657]
[1758294383467,0.1147206,115670.0,115660.0,0.82205928]
[1758294383660,0.4755206,115670.0,115660.0,0.40100657]
[1758294384259,0.9654406,115670.0,115660.0,0.40100657]
[1758294386062,0.9654406,115670.0,115660.0,0.74009567]
[1758294386257,0.1147206,115670.0,115660.0,0.74009567]
[1758294386571,0.0061,115670.0,115660.0,1.10089567]
[1758294387172,0.1079207,115700.0,115690.0,0.1216356]
[1758294387376,0.9586007,115700.0,115690.0,0.8215247]
[1758294387758,0.1079159,115710.0,115700.0,0.1216281]
[1758294387973,0.9585959,115710.0,115700.0,0.4607172]
[1758294388173,0.0993383,115720.0,115710.0,0.0863805]
[1758294388469,0.0863731,115720.0,115710.0,0.52921909]
[1758294388777,0.9370131,115720.0,115710.0,0.52921909]
[1758294389070,0.9370131,115720.0,115710.0,0.89001909]
[1758294389271,0.9585431,115720.0,115710.0,0.89001909]
[1758294389765,1.3115822,115720.0,115710.0,0.06850949]
[1758294389969,1.9263822,115720.0,115710.0,0.007]
[1758294390172,1.5872931,115720.0,115710.0,0.007]
[1758294390474,1.9263822,115720.0,115710.0,0.007]
[1758294391270,0.7366531,115720.0,115710.0,0.007]
[1758294391472,1.5871731,115720.0,115710.0,0.02929]
[1758294391670,1.9282622,115720.0,115710.0,0.008]
[1758294393075,1.9282622,115720.0,115710.0,0.03029]
[1758294393476,1.9282622,115720.0,115710.0,0.008]
[1758294396778,2.2673513,115720.0,115710.0,0.008]
[1758294397573,0.0863882,115700.0,115690.0,0.01983612]
[1758294397770,1.6720373,115700.0,115690.0,0.01983612]
[1758294397975,1.6937482,115700.0,115690.0,0.01983612]
[1758294398282,2.0328373,115700.0,115690.0,0.01983612]
[1758294398487,0.1079406,115670.0,115660.0,0.84126987]
[1758294398779,0.9582206,115670.0,115660.0,0.84126987]
[1758294399381,0.87181,115670.0,115660.0,0.84126987]
[1758294399578,0.87177,115670.0,115660.0,0.84126987]
[1758294400281,0.87177,115670.0,115660.0,0.86017842]
[1758294400484,0.1218883,115680.0,115670.0,0.1216506]
[1758294400676,0.9581783,115680.0,115670.0,0.4607397]
[1758294400879,0.1079383,115680.0,115670.0,0.4607397]
[1758294401484,0.9581383,115680.0,115670.0,0.4607397]
[1758294401688,0.1089383,115680.0,115670.0,0.4607397]
[1758294401878,0.9591383,115680.0,115670.0,0.4607397]
[1758294402078,0.9591383,115680.0,115670.0,0.8215397]
[1758294402986,0.9641383,115680.0,115670.0,0.8245397]
[1758294403176,0.02753,115680.0,115670.0,0.8245397]
[1758294403382,0.85616,115680.0,115670.0,1.4136288]
[1758294403687,0.85616,115680.0,115670.0,1.0745397]
[1758294404386,0.85616,115680.0,115670.0,0.7354506]
[1758294404591,0.85616,115680.0,115670.0,1.0745397]
[1758294404775,0.006,115680.0,115670.0,1.0745397]
[1758294404975,0.006,115680.0,115670.0,1.4136288]
[1758294406187,0.0059559,115680.0,115670.0,1.4136288]
[1758294406389,0.0060559,115680.0,115670.0,2.2637088]
[1758294407489,0.00483147,115680.0,115670.0,2.3501579]
[1758294408288,0.0863847,115710.0,115700.0,0.0993381]
[1758294408480,0.3044179,115720.0,115710.0,0.0863807]
[1758294408680,0.3044179,115720.0,115710.0,0.48086576]
[1758294408878,0.2904679,115720.0,115710.0,0.84166576]
[1758294409080,0.2904679,115720.0,115710.0,0.50257666]
[1758294409279,0.2904679,115720.0,115710.0,0.84166576]
[1758294409679,0.2924679,115720.0,115710.0,0.8225098]
[1758294409882,0.2924679,115720.0,115710.0,0.4834207]
[1758294410484,0.0923779,115720.0,115710.0,0.4894207]
[1758294410982,0.0923779,115720.0,115710.0,0.91010142]
[1758294411183,0.1278579,115720.0,115710.0,0.4894207]
[1758294411386,0.4886579,115720.0,115710.0,0.02929]
[1758294411688,0.4886579,115720.0,115710.0,0.1156706]
[1758294412090,0.1278579,115720.0,115710.0,0.1156706]
[1758294412285,0.4886579,115720.0,115710.0,0.1156706]
[1758294412675,0.1278579,115720.0,115710.0,0.1156706]
[1758294412879,0.4886579,115720.0,115710.0,0.1156706]
[1758294413080,0.4886579,115720.0,115710.0,0.1286806]
[1758294413283,0.1139079,115720.0,115710.0,0.4894806]
[1758294413583,0.1139079,115720.0,115710.0,0.21573807]
[1758294413788,0.006,115720.0,115710.0,0.57653807]
[1758294413989,0.0923732,115720.0,115710.0,0.57653807]
[1758294415895,0.006,115720.0,115710.0,0.57653807]
[1758294416093,0.0923732,115720.0,115710.0,0.57653807]
[1758294416792,0.1139632,115720.0,115710.0,0.21573807]
[1758294418181,0.1268432,115720.0,115710.0,0.1496023]
[1758294418393,1.15832392,115720.0,115710.0,0.09511166]
[1758294419589,1.15832392,115720.0,115710.0,0.11695166]
[1758294419895,0.7376432,115720.0,115710.0,0.11695166]
[1758294420191,0.7376432,115720.0,115710.0,0.09670683]
[1758294420691,1.5869632,115720.0,115710.0,0.09670683]
[1758294421894,1.2261632,115720.0,115710.0,0.18308743]
[1758294422088,1.2261632,115720.0,115710.0,0.09670683]
[1758294422395,1.5869632,115720.0,115710.0,0.09670683]
[1758294422697,2.00764392,115720.0,115710.0,0.07486683]
[1758294422888,1.64684392,115720.0,115710.0,0.007]
[1758294423089,0.0999407,115710.0,115700.0,0.02027819]
[1758294423287,0.90394142,115710.0,115700.0,0.02027819]
[1758294423889,0.4832607,115710.0,115700.0,0.02027819]
[1758294424186,0.90394142,115710.0,115700.0,0.02027819]
[1758294424786,0.90794142,115710.0,115700.0,0.02627819]
[1758294425391,0.90894142,115710.0,115700.0,0.05024819]
[1758294425801,0.90894142,115710.0,115700.0,0.02727819]
[1758294426691,0.90894142,115710.0,115700.0,0.09475712]
[1758294426994,0.90904142,115710.0,115700.0,0.09475712]
[1758294427598,0.4843607,115710.0,115700.0,0.08875712]
[1758294427892,0.90904142,115710.0,115700.0,0.09075712]
[1758294428095,0.90904142,115710.0,115700.0,0.02327819]
[1758294429486,0.90904142,115710.0,115700.0,0.04624819]
[1758294429896,1.75796142,115710.0,115700.0,0.02597]
[1758294430096,0.90904142,115710.0,115700.0,0.02597]
[1758294430292,0.1275607,115710.0,115700.0,0.14582603]
[1758294430497,0.1140007,115710.0,115700.0,0.14582603]